Workbook

Sheet Detailed Estimate
A2: Nexa Estimating, LLC | G2: PROJECT:
A4: 5900 Balcones Drive # 14421 St 100 Austin, TX, 78731
G5: DATE:
A6: ITEM # | B6: DWG. # | C6: DESCRIPTION | D6: QUANTITY | E6: UNIT | F6: UNIT COST (Labor+ Material) | G6: TOTAL COST (Labor+ Material) | H6: TRADE COST
C7: GENERAL REQUIREMENTS
A8: =IF(D8="","",COUNTA(($D$8:D8))) -> 1 | B8: N/A | C8: Supervision (5%) | D8: 1.0 | E8: LS | F8: 0.00 | G8: =D8*F8 -> $0
A9: =IF(D9="","",COUNTA(($D$8:D9))) -> 2 | B9: N/A | C9: Permits (5%) | D9: 1.0 | E9: LS | F9: 0.00 | G9: =D9*F9 -> $0
A10: =IF(D10="","",COUNTA(($D$8:D10))) -> 3 | B10: N/A | C10: Final Cleanup (0.2 Per SF) | D10: 1.0 | E10: LS | F10: 0.00 | G10: $0
A11: =IF(D11="","",COUNTA(($D$8:D11))) -> 4 | B11: N/A | C11: Mobilization Costs (5%) | D11: 1.0 | E11: LS | F11: 0.00 | G11: $0
A12: =IF(D12="","",COUNTA(($D$8:D12))) -> 5 | B12: N/A | C12: Project Overheads (7.3%) | D12: 1.0 | E12: LS | F12: 0.00 | G12: $0
A13: =IF(D13="","",COUNTA(($D$8:D13))) -> 6 | B13: N/A | C13: Bonds (8%) | D13: 1.0 | E13: LS | F13: 0.00 | G13: $0
A14: =IF(D14="","",COUNTA(($D$8:D14))) -> 7 | B14: N/A | C14: Temporary Control & Facilities (5%) | D14: 1.0 | E14: LS | F14: 0.00 | G14: $0
C15: Subtotal (General Requirements) | H15: =(SUM(G8:G14)) -> $0
C17: Division 09 — Finishes
C18: WALL FINISH (TILES)
A19: =IF(D19="","",COUNTA(($D$8:D19))) -> 8 | B19: A2.1.1 | C19: GLAZED WALL TILE (GWT) ON (0603) TOILET WALLS | D19: 1304.4 | E19: SQ FT | F19: 12.50 | G19: =D19*F19 -> $16,305
A20: =IF(D20="","",COUNTA(($D$8:D20))) -> 9 | B20: A2.1.1 | C20: GLAZED WALL TILE (GWT) ON (0605) TOILET WALLS | D20: 1301.7 | E20: SQ FT | F20: 12.50 | G20: =D20*F20 -> $16,272
A21: =IF(D21="","",COUNTA(($D$8:D21))) -> 10 | B21: A2.1.3 | C21: GLAZED WALL TILE (GWT) ON (0733) TOILET WALLS | D21: 2388.4 | E21: SQ FT | F21: 12.50 | G21: $29,855
A22: =IF(D22="","",COUNTA(($D$8:D22))) -> 11 | B22: A2.1.3 | C22: GLAZED WALL TILE (GWT) ON (0721) TOILET WALLS | D22: 2280.6 | E22: SQ FT | F22: 12.50 | G22: $28,508
A23: =IF(D23="","",COUNTA(($D$8:D23))) -> 12 | B23: A2.1.4 | C23: GLAZED WALL TILE (GWT) ON (0809) TOILET WALLS | D23: 2127.2 | E23: SQ FT | F23: 12.50 | G23: $26,590
A24: =IF(D24="","",COUNTA(($D$8:D24))) -> 13 | B24: A2.1.4 | C24: GLAZED WALL TILE (GWT) ON (0515) TOILET WALLS | D24: 2393.4 | E24: SQ FT | F24: 12.50 | G24: $29,918
A25: =IF(D25="","",COUNTA(($D$8:D25))) -> 14 | B25: A2.1.6 | C25: GLAZED WALL TILE (GWT) ON (1540) TOILET WALLS | D25: 1055.7 | E25: SQ FT | F25: 12.50 | G25: $13,196
A26: =IF(D26="","",COUNTA(($D$8:D26))) -> 15 | B26: A2.1.6 | C26: GLAZED WALL TILE (GWT) ON (1542) TOILET WALLS | D26: 1044.5 | E26: SQ FT | F26: 12.50 | G26: $13,056
A27: =IF(D27="","",COUNTA(($D$8:D27))) -> 16 | B27: A2.1.10 | C27: GLAZED WALL TILE (GWT) ON (1521) TOILET WALLS | D27: 1293.2 | E27: SQ FT | F27: 12.50 | G27: $16,165
A28: =IF(D28="","",COUNTA(($D$8:D28))) -> 17 | B28: A2.1.10 | C28: GLAZED WALL TILE (GWT) ON (1519) TOILET WALLS | D28: 1261.6 | E28: SQ FT | F28: 12.50 | G28: $15,770
A29: =IF(D29="","",COUNTA(($D$8:D29))) -> 18 | B29: A2.1.11 | C29: GLAZED WALL TILE (GWT) ON (1215) TOILET WALLS | D29: 1306.1 | E29: SQ FT | F29: 12.50 | G29: $16,326
A30: =IF(D30="","",COUNTA(($D$8:D30))) -> 19 | B30: A2.1.11 | C30: GLAZED WALL TILE (GWT) ON (1213) TOILET WALLS | D30: 1322.9 | E30: SQ FT | F30: 12.50 | G30: $16,537
A31: =IF(D31="","",COUNTA(($D$8:D31))) -> 20 | B31: A2.1.11 | C31: GLAZED WALL TILE (GWT) ON (1111) TOILET WALLS | D31: 1327.7 | E31: SQ FT | F31: 12.50 | G31: $16,596
A32: =IF(D32="","",COUNTA(($D$8:D32))) -> 21 | B32: A2.1.11 | C32: GLAZED WALL TILE (GWT) ON (1109) TOILET WALLS | D32: 1319.3 | E32: SQ FT | F32: 12.50 | G32: $16,491
A33: =IF(D33="","",COUNTA(($D$8:D33))) -> 22 | B33: A2.1.13 | C33: GLAZED WALL TILE (GWT) ON (2503) TOILET WALLS | D33: 1259.5 | E33: SQ FT | F33: 12.50 | G33: $15,743
A34: =IF(D34="","",COUNTA(($D$8:D34))) -> 23 | B34: A2.1.13 | C34: GLAZED WALL TILE (GWT) ON (2505) TOILET WALLS | D34: 1245.2 | E34: SQ FT | F34: 12.50 | G34: $15,565
A35: =IF(D35="","",COUNTA(($D$8:D35))) -> 24 | B35: A2.1.13 | C35: GLAZED WALL TILE (GWT) ON (2328D) POTTERY WALLS | D35: 1210.2 | E35: SQ FT | F35: 12.50 | G35: $15,128
A36: =IF(D36="","",COUNTA(($D$8:D36))) -> 25 | B36: A2.1.14 | C36: GLAZED WALL TILE (GWT) ON (2211) TOILET WALLS | D36: 1309.6 | E36: SQ FT | F36: 12.50 | G36: $16,370
A37: =IF(D37="","",COUNTA(($D$8:D37))) -> 26 | B37: A2.1.14 | C37: GLAZED WALL TILE (GWT) ON (2209) TOILET WALLS | D37: 1324.9 | E37: SQ FT | F37: 12.50 | G37: $16,562
A38: =IF(D38="","",COUNTA(($D$8:D38))) -> 27 | B38: A2.1.14 | C38: GLAZED WALL TILE (GWT) ON (2115) TOILET WALLS | D38: 1323.7 | E38: SQ FT | F38: 12.50 | G38: $16,546
A39: =IF(D39="","",COUNTA(($D$8:D39))) -> 28 | B39: A2.1.14 | C39: GLAZED WALL TILE (GWT) ON (2117) TOILET WALLS | D39: 1330.3 | E39: SQ FT | F39: 12.50 | G39: $16,629
A40: =IF(D40="","",COUNTA(($D$8:D40))) -> 29 | B40: A2.15 | C40: GLAZED WALL TILE (GWT) ON (3503) TOILET WALLS | D40: 1264.4 | E40: SQ FT | F40: 12.50 | G40: $15,804
A41: =IF(D41="","",COUNTA(($D$8:D41))) -> 30 | B41: A2.1.15 | C41: GLAZED WALL TILE (GWT) ON (3505) TOILET WALLS | D41: 1249.2 | E41: SQ FT | F41: 12.50 | G41: $15,615
A42: =IF(D42="","",COUNTA(($D$8:D42))) -> 31 | B42: A2.1.16 | C42: GLAZED WALL TILE (GWT) ON (3123) TOILET WALLS | D42: 1328.9 | E42: SQ FT | F42: 12.50 | G42: $16,611
A43: =IF(D43="","",COUNTA(($D$8:D43))) -> 32 | B43: A2.1.16 | C43: GLAZED WALL TILE (GWT) ON (3121) TOILET WALLS | D43: 1326.2 | E43: SQ FT | F43: 12.50 | G43: $16,577
A44: =IF(D44="","",COUNTA(($D$8:D44))) -> 33 | B44: A2.1.16 | C44: GLAZED WALL TILE (GWT) ON (3213) TOILET WALLS | D44: 1264.8 | E44: SQ FT | F44: 12.50 | G44: $15,810
A45: =IF(D45="","",COUNTA(($D$8:D45))) -> 34 | B45: A2.1.16 | C45: GLAZED WALL TILE (GWT) ON (3211) TOILET WALLS | D45: 1280.2 | E45: SQ FT | F45: 12.50 | G45: $16,002
A46: =IF(D46="","",COUNTA(($D$8:D46))) -> 35 | B46: A2.1.17 | C46: GLAZED WALL TILE (GWT) ON (4501) TOILET WALLS | D46: 1486.4 | E46: SQ FT | F46: 12.50 | G46: $18,581
A47: =IF(D47="","",COUNTA(($D$8:D47))) -> 36 | B47: A2.1.17 | C47: GLAZED WALL TILE (GWT) ON (4503) TOILET WALLS | D47: 1469.5 | E47: SQ FT | F47: 12.50 | G47: $18,369
A48: =IF(D48="","",COUNTA(($D$8:D48))) -> 37 | B48: A2.1.17 | C48: GLAZED WALL TILE (GWT) ON (4507) TOILET WALLS | D48: 520.4 | E48: SQ FT | F48: 12.50 | G48: $6,505
A49: =IF(D49="","",COUNTA(($D$8:D49))) -> 38 | B49: A2.1. | C49: GLAZED WALL TILE (GWT) ON (4509) TOILET WALLS | D49: 520.0 | E49: SQ FT | F49: 12.50 | G49: $6,500
A50: =IF(D50="","",COUNTA(($D$8:D50))) -> 39 | B50: A2.1.18 | C50: GLAZED WALL TILE (GWT) ON (4114) TOILET WALLS | D50: 1558.6 | E50: SQ FT | F50: 12.50 | G50: $19,483
A51: =IF(D51="","",COUNTA(($D$8:D51))) -> 40 | B51: A2.1.18 | C51: GLAZED WALL TILE (GWT) ON (4112) TOILET WALLS | D51: 1553.9 | E51: SQ FT | F51: 12.50 | G51: $19,424
A52: =IF(D52="","",COUNTA(($D$8:D52))) ->  | C52: FLOOR FINISH
A53: =IF(D53="","",COUNTA(($D$8:D53))) ->  | B53: A2.1.1 | C53: GROUND FLOOR PLAN PART A
A54: =IF(D54="","",COUNTA(($D$8:D54))) -> 41 | C54: 531 VCT FLOOR | D54: 545.6 | E54: SQFT | F54: 13.00 | G54: $7,093
A55: =IF(D55="","",COUNTA(($D$8:D55))) -> 42 | C55: 533 VCT FLOOR | D55: 534.8 | E55: SQFT | F55: 13.00 | G55: $6,952
A56: =IF(D56="","",COUNTA(($D$8:D56))) -> 43 | C56: 535 VCT FLOOR | D56: 555.7 | E56: SQFT | F56: 13.00 | G56: $7,224
A57: =IF(D57="","",COUNTA(($D$8:D57))) -> 44 | C57: 537 VCT FLOOR | D57: 533.5 | E57: SQFT | F57: 13.00 | G57: $6,936
A58: =IF(D58="","",COUNTA(($D$8:D58))) -> 45 | C58: 540A VCT FLOOR | D58: 63.3 | E58: SQFT | F58: 13.00 | G58: $823
A59: =IF(D59="","",COUNTA(($D$8:D59))) -> 46 | C59: 601 TOILET WALLS CT (CERAMIC TILE) | D59: 57.4 | E59: SQFT | F59: 12.00 | G59: $689
A60: =IF(D60="","",COUNTA(($D$8:D60))) -> 47 | C60: 603 TOILET WALLS CT (CERAMIC TILE) | D60: 322.2 | E60: SQFT | F60: 12.00 | G60: $3,866
A61: =IF(D61="","",COUNTA(($D$8:D61))) -> 48 | C61: 605 TOILET WALLS CT (CERAMIC TILE) | D61: 312.4 | E61: SQFT | F61: 12.00 | G61: $3,749
A62: =IF(D62="","",COUNTA(($D$8:D62))) -> 49 | C62: 607 AD VCT FLOOR | D62: 174.5 | E62: SQFT | F62: 13.00 | G62: $2,269
A63: =IF(D63="","",COUNTA(($D$8:D63))) -> 50 | C63: 607A VCT FLOOR | D63: 57.8 | E63: SQFT | F63: 13.00 | G63: $751
A64: =IF(D64="","",COUNTA(($D$8:D64))) -> 51 | C64: 613 RES VCT FLOOR | D64: 87.9 | E64: SQFT | F64: 13.00 | G64: $1,143
A65: =IF(D65="","",COUNTA(($D$8:D65))) -> 52 | C65: 615 TRAINING VCT FLOOR.CT (CERAMIC TILE) | D65: 335.4 | E65: SQFT | F65: 13.00 | G65: $4,360
A66: =IF(D66="","",COUNTA(($D$8:D66))) -> 53 | C66: 708 TEAM VCT FLOOR | D66: 49.8 | E66: SQFT | F66: 13.00 | G66: $647
A67: =IF(D67="","",COUNTA(($D$8:D67))) -> 54 | C67: 708 TEAM VCT FLOOR | D67: 949.3 | E67: SQFT | F67: 13.00 | G67: $12,341
A68: =IF(D68="","",COUNTA(($D$8:D68))) -> 55 | C68: 718 LAUNDRY VCT FLOOR | D68: 180.6 | E68: SQFT | F68: 13.00 | G68: $2,348
A69: =IF(D69="","",COUNTA(($D$8:D69))) -> 56 | C69: 606 A STORE VCT FLOOR | D69: 67.6 | E69: SQFT | F69: 13.00 | G69: $879
A70: =IF(D70="","",COUNTA(($D$8:D70))) -> 57 | C70: 609 TICKET VCT FLOOR | D70: 72.0 | E70: SQFT | F70: 13.00 | G70: $936
A71: =IF(D71="","",COUNTA(($D$8:D71))) -> 58 | C71: 524 CORR VCT FLOOR | D71: 1266.0 | E71: SQFT | F71: 13.00 | G71: $16,458
A72: =IF(D72="","",COUNTA(($D$8:D72))) -> 59 | C72: 540 CORR VCT FLOOR | D72: 92.8 | E72: SQFT | F72: 13.00 | G72: $1,206
A73: =IF(D73="","",COUNTA(($D$8:D73))) -> 60 | C73: 600 CORR VCT FLOOR | D73: 296.1 | E73: SQFT | F73: 13.00 | G73: $3,849
A74: =IF(D74="","",COUNTA(($D$8:D74))) -> 61 | C74: 606 COLNCESS VCT FLOOR | D74: 389.3 | E74: SQFT | F74: 13.00 | G74: $5,061
A75: =IF(D75="","",COUNTA(($D$8:D75))) -> 62 | C75: 600A VEST VCT FLOOR | D75: 179.9 | E75: SQFT | F75: 13.00 | G75: $2,339
A76: =IF(D76="","",COUNTA(($D$8:D76))) -> 
A77: =IF(D77="","",COUNTA(($D$8:D77))) ->  | C77: GROUND FLOOR PLAN PART B
A78: =IF(D78="","",COUNTA(($D$8:D78))) -> 63 | B78: A2.1.2 | C78: 804 STAFF DINING VCT FLOOR | D78: 293.7 | E78: SQFT | F78: 13.00 | G78: $3,818
A79: =IF(D79="","",COUNTA(($D$8:D79))) -> 64 | C79: 802 STAFF DINING VCT FLOOR | D79: 293.3 | E79: SQFT | F79: 13.00 | G79: $3,813
A80: =IF(D80="","",COUNTA(($D$8:D80))) -> 65 | C80: 738 CORR VCT FLOOR | D80: 1639.6 | E80: SQFT | F80: 13.00 | G80: $21,315
A81: =IF(D81="","",COUNTA(($D$8:D81))) -> 66 | C81: 521B TOIL CT (CERAMIC TILE) | D81: 86.3 | E81: SQFT | F81: 12.00 | G81: $1,036
A82: =IF(D82="","",COUNTA(($D$8:D82))) -> 
A83: =IF(D83="","",COUNTA(($D$8:D83))) ->  | C83: GROUND FLOOR PLAN PART C
A84: =IF(D84="","",COUNTA(($D$8:D84))) -> 67 | B84: A2.1.3 | C84: 733 TOIL CT (CERAMIC TILE) | D84: 378.2 | E84: SQFT | F84: 12.00 | G84: =D84*F84 -> $4,538
A85: =IF(D85="","",COUNTA(($D$8:D85))) -> 68 | C85: 731B COACH VCT FLOOR | D85: 144.8 | E85: SQFT | F85: 13.00 | G85: $1,882
A86: =IF(D86="","",COUNTA(($D$8:D86))) -> 69 | C86: 731C TOWEL VCT FLOOR | D86: 41.0 | E86: SQFT | F86: 13.00 | G86: $533
A87: =IF(D87="","",COUNTA(($D$8:D87))) -> 70 | C87: 731 LOCKER VCT FLOOR | D87: 1618.3 | E87: SQFT | F87: 13.00 | G87: $21,038
A88: =IF(D88="","",COUNTA(($D$8:D88))) -> 71 | C88: 731A VEST VCT FLOOR | D88: 72.5 | E88: SQFT | F88: 13.00 | G88: $943
A89: =IF(D89="","",COUNTA(($D$8:D89))) -> 72 | C89: 731D T/S CT (CERAMIC TILE) | D89: 72.3 | E89: SQFT | F89: 12.00 | G89: $868
A90: =IF(D90="","",COUNTA(($D$8:D90))) -> 73 | C90: 729 P.E. OFFICE VCT FLOOR | D90: 477.5 | E90: SQFT | F90: 13.00 | G90: $6,208
A91: =IF(D91="","",COUNTA(($D$8:D91))) -> 74 | C91: 727 PLAN VCT FLOOR | D91: 192.5 | E91: SQFT | F91: 13.00 | G91: $2,503
A92: =IF(D92="","",COUNTA(($D$8:D92))) -> 75 | C92: 725 PE.OFFICE. VCT FLOOR | D92: 482.6 | E92: SQFT | F92: 13.00 | G92: $6,274
A93: =IF(D93="","",COUNTA(($D$8:D93))) -> 76 | C93: 723B T/S CT (CERAMIC TILE) | D93: 79.5 | E93: SQFT | F93: 12.00 | G93: $954
A94: =IF(D94="","",COUNTA(($D$8:D94))) -> 77 | C94: 723A VEST VCT FLOOR | D94: 97.7 | E94: SQFT | F94: 13.00 | G94: $1,270
A95: =IF(D95="","",COUNTA(($D$8:D95))) -> 78 | C95: 723C COACH VCT FLOOR | D95: 145.9 | E95: SQFT | F95: 13.00 | G95: $1,897
A96: =IF(D96="","",COUNTA(($D$8:D96))) -> 79 | C96: 723D TOWEL VCT FLOOR | D96: 41.7 | E96: SQFT | F96: 13.00 | G96: $542
A97: =IF(D97="","",COUNTA(($D$8:D97))) -> 80 | C97: 721 TOIL CT (CERAMIC TILE) | D97: 386.4 | E97: SQFT | F97: 12.00 | G97: $4,637
A98: =IF(D98="","",COUNTA(($D$8:D98))) -> 81 | C98: 717 REF VCT FLOOR | D98: 206.1 | E98: SQFT | F98: 13.00 | G98: $2,679
A99: =IF(D99="","",COUNTA(($D$8:D99))) -> 82 | C99: 711 TEAM VCT FLOOR | D99: 292.6 | E99: SQFT | F99: 13.00 | G99: $3,804
A100: =IF(D100="","",COUNTA(($D$8:D100))) -> 83 | C100: 709 TEAM VCT FLOOR | D100: 477.1 | E100: SQFT | F100: 13.00 | G100: $6,202
A101: =IF(D101="","",COUNTA(($D$8:D101))) -> 84 | C101: 701 TICKET BOOTH VCT FLOOR | D101: 114.2 | E101: SQFT | F101: 13.00 | G101: $1,485
A102: =IF(D102="","",COUNTA(($D$8:D102))) -> 85 | C102: 723E STORAGE VCT FLOOR | D102: 151.6 | E102: SQFT | F102: 13.00 | G102: $1,971
A103: =IF(D103="","",COUNTA(($D$8:D103))) -> 86 | C103: 723 LOCKER VCT FLOOR | D103: 1608.4 | E103: SQFT | F103: 13.00 | G103: $20,909
A104: =IF(D104="","",COUNTA(($D$8:D104))) -> 87 | C104: 726 CORRIDOOR VCT FLOOR | D104: 828.2 | E104: SQFT | F104: 13.00 | G104: $10,767
A105: =IF(D105="","",COUNTA(($D$8:D105))) -> 88 | C105: 700 CORR VCT FLOOR | D105: 336.6 | E105: SQFT | F105: 13.00 | G105: $4,376
A106: =IF(D106="","",COUNTA(($D$8:D106))) -> 89 | C106: 741 KITCHEN QUERRY TILE (QT) | D106: 1895.1 | E106: SQFT | F106: 12.00 | G106: $22,741
A107: =IF(D107="","",COUNTA(($D$8:D107))) -> 
A108: =IF(D108="","",COUNTA(($D$8:D108))) ->  | C108: GROUND FLOOR PLAN PART C.1
A109: =IF(D109="","",COUNTA(($D$8:D109))) -> 90 | B109: A2.1.3 | C109: 741D BS QUERRY TILE (QT) | D109: 87.2 | E109: SQFT | F109: 12.00 | G109: $1,046
A110: =IF(D110="","",COUNTA(($D$8:D110))) -> 91 | C110: 741E LKR VCT FLOOR | D110: 58.2 | E110: SQFT | F110: 13.00 | G110: $757
A111: =IF(D111="","",COUNTA(($D$8:D111))) -> 92 | C111: 741F TOIL CT (CERAMIC TILE) | D111: 73.4 | E111: SQFT | F111: 12.00 | G111: $881
A112: =IF(D112="","",COUNTA(($D$8:D112))) -> 93 | C112: 738 CORR. VCT FLOOR | D112: 876.7 | E112: SQFT | F112: 13.00 | G112: $11,397
A113: =IF(D113="","",COUNTA(($D$8:D113))) -> 94 | C113: 739 CORR. VCT FLOOR | D113: 596.3 | E113: SQFT | F113: 13.00 | G113: $7,752
A114: =IF(D114="","",COUNTA(($D$8:D114))) -> 95 | C114: 741B DRY.STOR. QUERRY TILE (QT) | D114: 411.1 | E114: SQFT | F114: 12.00 | G114: $4,933
A115: =IF(D115="","",COUNTA(($D$8:D115))) -> 96 | C115: 741A OFF VCT FLOOR | D115: 96.7 | E115: SQFT | F115: 13.00 | G115: $1,257
A116: =IF(D116="","",COUNTA(($D$8:D116))) -> 97 | C116: 739A VEST VCT FLOOR | D116: 113.7 | E116: SQFT | F116: 13.00 | G116: $1,478
A117: =IF(D117="","",COUNTA(($D$8:D117))) -> 98 | C117: 700A VEST VCT FLOOR | D117: 56.4 | E117: SQFT | F117: 13.00 | G117: $733
A118: =IF(D118="","",COUNTA(($D$8:D118))) -> 
A119: =IF(D119="","",COUNTA(($D$8:D119))) ->  | C119: GROUND FLOOR PART D
A120: =IF(D120="","",COUNTA(($D$8:D120))) -> 99 | B120: A2.1.4 | C120: 913C OFFICE VCT FLOOR | D120: 118.6 | E120: SQFT | F120: 13.00 | G120: $1,542
A121: =IF(D121="","",COUNTA(($D$8:D121))) -> 100 | C121: 913D LOCKER VCT FLOOR | D121: 54.8 | E121: SQFT | F121: 13.00 | G121: $712
A122: =IF(D122="","",COUNTA(($D$8:D122))) -> 101 | C122: 913E LOCKER VCT FLOOR | D122: 279.0 | E122: SQFT | F122: 13.00 | G122: $3,627
A123: =IF(D123="","",COUNTA(($D$8:D123))) -> 102 | C123: 913F CLASSROOM VCT FLOOR | D123: 547.4 | E123: SQFT | F123: 13.00 | G123: $7,116
A124: =IF(D124="","",COUNTA(($D$8:D124))) -> 103 | C124: 913G TOOLS EPOXY FLOOR ENAMEL | D124: 602.1 | E124: SQFT | F124: 18.00 | G124: $10,838
A125: =IF(D125="","",COUNTA(($D$8:D125))) -> 104 | C125: 906 OFFICE VCT FLOOR | D125: 102.3 | E125: SQFT | F125: 13.00 | G125: $1,330
A126: =IF(D126="","",COUNTA(($D$8:D126))) -> 105 | C126: 908 OFFICE VCT FLOOR | D126: 120.8 | E126: SQFT | F126: 13.00 | G126: $1,570
A127: =IF(D127="","",COUNTA(($D$8:D127))) -> 106 | C127: 914 TOIL CT (CERAMIC TILE) | D127: 64.3 | E127: SQFT | F127: 12.00 | G127: $772
A128: =IF(D128="","",COUNTA(($D$8:D128))) -> 107 | C128: 916 TOIL CT (CERAMIC TILE) | D128: 91.0 | E128: SQFT | F128: 12.00 | G128: $1,092
A129: =IF(D129="","",COUNTA(($D$8:D129))) -> 108 | C129: 918 C0STUME CONST. VCT FLOOR | D129: 199.3 | E129: SQFT | F129: 13.00 | G129: $2,591
A130: =IF(D130="","",COUNTA(($D$8:D130))) -> 109 | C130: 917 OFFICE VCT FLOOR | D130: 88.1 | E130: SQFT | F130: 13.00 | G130: $1,145
A131: =IF(D131="","",COUNTA(($D$8:D131))) -> 110 | C131: 915 CORR. VCT FLOOR | D131: 351.9 | E131: SQFT | F131: 13.00 | G131: $4,575
A132: =IF(D132="","",COUNTA(($D$8:D132))) -> 111 | C132: 915 A VEST VCT FLOOR | D132: 62.4 | E132: SQFT | F132: 13.00 | G132: $811
A133: =IF(D133="","",COUNTA(($D$8:D133))) -> 112 | C133: 900 CORR. VCT FLOOR | D133: 1742.7 | E133: SQFT | F133: 13.00 | G133: $22,655
A134: =IF(D134="","",COUNTA(($D$8:D134))) -> 113 | C134: 750 PIT ACCESS VCT FLOOR/RFT TREADS AND RISERS | D134: 86.1 | E134: SQFT | F134: 13.00 | G134: $1,119
A135: =IF(D135="","",COUNTA(($D$8:D135))) -> 114 | C135: 801H VESTIBULE VCT FLOOR | D135: 61.5 | E135: SQFT | F135: 13.00 | G135: $800
A136: =IF(D136="","",COUNTA(($D$8:D136))) -> 115 | C136: 801G STORE VCT FLOOR | D136: 29.8 | E136: SQFT | F136: 13.00 | G136: $387
A137: =IF(D137="","",COUNTA(($D$8:D137))) -> 116 | C137: 801F LIFT ACCESS C | D137: 47.5 | E137: SQFT | F137: 15.00 | G137: $713
A138: =IF(D138="","",COUNTA(($D$8:D138))) -> 117 | C138: 801E VEST VCT FLOOR | D138: 58.8 | E138: SQFT | F138: 13.00 | G138: $764
A139: =IF(D139="","",COUNTA(($D$8:D139))) -> 118 | C139: 746 CORR. VCT FLOOR | D139: 1079.8 | E139: SQFT | F139: 13.00 | G139: $14,037
A140: =IF(D140="","",COUNTA(($D$8:D140))) -> 119 | C140: 801D VEST C | D140: 42.0 | E140: SQFT | F140: 15.00 | G140: $630
A141: =IF(D141="","",COUNTA(($D$8:D141))) -> 120 | C141: 801C RAMP RFT/C | D141: 174.7 | E141: SQFT | F141: 15.00 | G141: $2,621
A142: =IF(D142="","",COUNTA(($D$8:D142))) -> 121 | C142: 503 MAKRUP VCT FLOOR | D142: 187.2 | E142: SQFT | F142: 13.00 | G142: $2,434
A143: =IF(D143="","",COUNTA(($D$8:D143))) -> 122 | C143: 501 DRESS VCT FLOOR | D143: 210.8 | E143: SQFT | F143: 13.00 | G143: $2,740
A144: =IF(D144="","",COUNTA(($D$8:D144))) -> 123 | C144: 501A TOIL CT | D144: 66.1 | E144: SQFT | F144: 12.00 | G144: $793
A145: =IF(D145="","",COUNTA(($D$8:D145))) -> 124 | C145: 505A TOIL CT | D145: 65.8 | E145: SQFT | F145: 12.00 | G145: $790
A146: =IF(D146="","",COUNTA(($D$8:D146))) -> 125 | C146: 505 DRESS VCT FLOOR | D146: 225.0 | E146: SQFT | F146: 13.00 | G146: $2,925
A147: =IF(D147="","",COUNTA(($D$8:D147))) -> 126 | C147: 501B COSTUME ST. VCT FLOOR | D147: 232.8 | E147: SQFT | F147: 13.00 | G147: $3,026
A148: =IF(D148="","",COUNTA(($D$8:D148))) -> 127 | C148: 515 TOILET WALLS CT | D148: 613.5 | E148: SQFT | F148: 12.00 | G148: =D148*F148 -> $7,362
A149: =IF(D149="","",COUNTA(($D$8:D149))) -> 128 | C149: 517 TOIL CT | D149: 63.8 | E149: SQFT | F149: 12.00 | G149: $766
A150: =IF(D150="","",COUNTA(($D$8:D150))) -> 129 | C150: 509 CORR. VCT FLOOR | D150: 295.8 | E150: SQFT | F150: 13.00 | G150: $3,845
A151: =IF(D151="","",COUNTA(($D$8:D151))) -> 130 | C151: 500 CORR. VCT FLOOR | D151: 1048.4 | E151: SQFT | F151: 13.00 | G151: $13,629
A152: =IF(D152="","",COUNTA(($D$8:D152))) -> 131 | C152: 801 B VEST VCT FLOOR | D152: 108.6 | E152: SQFT | F152: 13.00 | G152: $1,412
A153: =IF(D153="","",COUNTA(($D$8:D153))) -> 132 | C153: 809 TOILET WALLS CT | D153: 634.0 | E153: SQFT | F153: 12.00 | G153: $7,608
A154: =IF(D154="","",COUNTA(($D$8:D154))) -> 133 | C154: 807 STORE VCT FLOOR | D154: 284.5 | E154: SQFT | F154: 13.00 | G154: $3,699
A155: =IF(D155="","",COUNTA(($D$8:D155))) -> 134 | C155: 805 CONC. VCT FLOOR | D155: 181.8 | E155: SQFT | F155: 13.00 | G155: $2,363
A156: =IF(D156="","",COUNTA(($D$8:D156))) -> 135 | C156: 803 TICKET VCT FLOOR | D156: 63.9 | E156: SQFT | F156: 13.00 | G156: $831
A157: =IF(D157="","",COUNTA(($D$8:D157))) -> 136 | C157: 801J VEST VCT FLOOR | D157: 108.2 | E157: SQFT | F157: 13.00 | G157: $1,407
A158: =IF(D158="","",COUNTA(($D$8:D158))) -> 137 | C158: 913 AUTO LAB EPOXY FLOOR ENAMEL | D158: 4893.4 | E158: SQFT | F158: 18.00 | G158: $88,081
A159: =IF(D159="","",COUNTA(($D$8:D159))) -> 
A160: =IF(D160="","",COUNTA(($D$8:D160))) ->  | C160: GOUND FLOOR PLAN PART E
A161: =IF(D161="","",COUNTA(($D$8:D161))) -> 138 | B161: A2.1.5 | C161: 901 DRAMA VCT FLOOR | D161: 891.4 | E161: SQFT | F161: 13.00 | G161: $11,588
A162: =IF(D162="","",COUNTA(($D$8:D162))) -> 139 | C162: 755E PERC.STOR VCT FLOOR | D162: 140.7 | E162: SQFT | F162: 13.00 | G162: $1,829
A163: =IF(D163="","",COUNTA(($D$8:D163))) -> 140 | C163: 755D INST.STOR. VCT FLOOR | D163: 465.2 | E163: SQFT | F163: 13.00 | G163: $6,048
A164: =IF(D164="","",COUNTA(($D$8:D164))) -> 141 | C164: 755 INST.MUSIC VCT FLOOR | D164: 1836.2 | E164: SQFT | F164: 13.00 | G164: $23,871
A165: =IF(D165="","",COUNTA(($D$8:D165))) -> 142 | C165: 753C OFFICE VCT FLOOR | D165: 405.0 | E165: SQFT | F165: 13.00 | G165: $5,265
A166: =IF(D166="","",COUNTA(($D$8:D166))) -> 143 | C166: 753D STORAGE VCT FLOOR | D166: 312.8 | E166: SQFT | F166: 13.00 | G166: $4,066
A167: =IF(D167="","",COUNTA(($D$8:D167))) -> 144 | C167: 755C STORAGE VCT FLOOR | D167: 187.5 | E167: SQFT | F167: 13.00 | G167: $2,438
A168: =IF(D168="","",COUNTA(($D$8:D168))) -> 145 | C168: 753 CHORAL VCT FLOOR | D168: 1850.6 | E168: SQFT | F168: 13.00 | G168: $24,058
A169: =IF(D169="","",COUNTA(($D$8:D169))) -> 146 | C169: 751 KEYBOARD VCT FLOOR | D169: 871.1 | E169: SQFT | F169: 13.00 | G169: $11,324
A170: =IF(D170="","",COUNTA(($D$8:D170))) -> 147 | C170: 745 OFFICE VCT FLOOR | D170: 139.8 | E170: SQFT | F170: 13.00 | G170: $1,817
A171: =IF(D171="","",COUNTA(($D$8:D171))) -> 148 | C171: 743 BS. STAFF VCT FLOOR | D171: 184.9 | E171: SQFT | F171: 13.00 | G171: $2,404
A172: =IF(D172="","",COUNTA(($D$8:D172))) -> 149 | C172: 743A LKR VCT FLOOR | D172: 82.0 | E172: SQFT | F172: 13.00 | G172: $1,066
A173: =IF(D173="","",COUNTA(($D$8:D173))) -> 150 | C173: 743B TOIL CT | D173: 75.7 | E173: SQFT | F173: 12.00 | G173: $908
A174: =IF(D174="","",COUNTA(($D$8:D174))) -> 151 | C174: 741F TOIL CT | D174: 74.1 | E174: SQFT | F174: 12.00 | G174: $889
A175: =IF(D175="","",COUNTA(($D$8:D175))) -> 152 | C175: 741E LKR VCT FLOOR | D175: 58.3 | E175: SQFT | F175: 13.00 | G175: $758
A176: =IF(D176="","",COUNTA(($D$8:D176))) -> 153 | C176: 741D BS QUERRY TILE (QT) | D176: 86.9 | E176: SQFT | F176: 12.00 | G176: $1,043
A177: =IF(D177="","",COUNTA(($D$8:D177))) -> 154 | C177: 913G TOOLS EPOXY FLOOR ENAMEL | D177: 465.5 | E177: SQFT | F177: 18.00 | G177: $8,379
A178: =IF(D178="","",COUNTA(($D$8:D178))) -> 155 | C178: 746 CORR VCT FLOOR | D178: 1467.2 | E178: SQFT | F178: 13.00 | G178: $19,074
A179: =IF(D179="","",COUNTA(($D$8:D179))) -> 156 | C179: 900 CORR. VCT FLOOR | D179: 597.8 | E179: SQFT | F179: 13.00 | G179: $7,771
A180: =IF(D180="","",COUNTA(($D$8:D180))) -> 
A181: =IF(D181="","",COUNTA(($D$8:D181))) ->  | C181: FIRST FLOOR PLAN PART A
A182: =IF(D182="","",COUNTA(($D$8:D182))) -> 157 | B182: A2.1.6 | C182: 1535C TOIL CT | D182: 59.6 | E182: SQFT | F182: 12.00 | G182: $715
A183: =IF(D183="","",COUNTA(($D$8:D183))) -> 158 | C183: 1535F ISO VCT FLOOR | D183: 121.9 | E183: SQFT | F183: 13.00 | G183: $1,585
A184: =IF(D184="","",COUNTA(($D$8:D184))) -> 159 | C184: 1535G NURSE VCT FLOOR | D184: 144.2 | E184: SQFT | F184: 13.00 | G184: $1,875
A185: =IF(D185="","",COUNTA(($D$8:D185))) -> 160 | C185: 1535B TOIL CT | D185: 61.2 | E185: SQFT | F185: 12.00 | G185: $734
A186: =IF(D186="","",COUNTA(($D$8:D186))) -> 161 | C186: 1535D CLOS VCT FLOOR | D186: 45.6 | E186: SQFT | F186: 13.00 | G186: $593
A187: =IF(D187="","",COUNTA(($D$8:D187))) -> 162 | C187: 1540 TOIL CT | D187: 172.1 | E187: SQFT | F187: 12.00 | G187: $2,065
A188: =IF(D188="","",COUNTA(($D$8:D188))) -> 163 | C188: 1542 TOIL CT | D188: 171.4 | E188: SQFT | F188: 12.00 | G188: $2,057
A189: =IF(D189="","",COUNTA(($D$8:D189))) -> 164 | C189: 1538 PTA STOR VCT FLOOR | D189: 203.8 | E189: SQFT | F189: 13.00 | G189: $2,649
A190: =IF(D190="","",COUNTA(($D$8:D190))) -> 165 | C190: 1536 STAFF ROOM VCT FLOOR | D190: 596.5 | E190: SQFT | F190: 13.00 | G190: $7,755
A191: =IF(D191="","",COUNTA(($D$8:D191))) -> 166 | C191: 1536A TEL VCT FLOOR | D191: 40.0 | E191: SQFT | F191: 13.00 | G191: $520
A192: =IF(D192="","",COUNTA(($D$8:D192))) -> 167 | C192: 1530A CLOS VCT FLOOR | D192: 60.1 | E192: SQFT | F192: 13.00 | G192: $781
A193: =IF(D193="","",COUNTA(($D$8:D193))) -> 168 | C193: 1534 TOIL CT | D193: 57.3 | E193: SQFT | F193: 12.00 | G193: $688
A194: =IF(D194="","",COUNTA(($D$8:D194))) -> 169 | C194: 1532 TOIL CT | D194: 57.1 | E194: SQFT | F194: 12.00 | G194: $685
A195: =IF(D195="","",COUNTA(($D$8:D195))) -> 170 | C195: 1530 SECURITY VCT FLOOR | D195: 505.9 | E195: SQFT | F195: 13.00 | G195: $6,577
A196: =IF(D196="","",COUNTA(($D$8:D196))) -> 171 | C196: 1528 STOR VCT FLOOR | D196: 143.0 | E196: SQFT | F196: 13.00 | G196: $1,859
A197: =IF(D197="","",COUNTA(($D$8:D197))) -> 172 | C197: 1526 I.S.S. VCT FLOOR | D197: 796.5 | E197: SQFT | F197: 13.00 | G197: $10,355
A198: =IF(D198="","",COUNTA(($D$8:D198))) -> 173 | C198: 1600A VEST VCT FLOOR | D198: 90.4 | E198: SQFT | F198: 13.00 | G198: $1,175
A199: =IF(D199="","",COUNTA(($D$8:D199))) -> 174 | C199: 1600 CORR VCT FLOOR | D199: 1027.5 | E199: SQFT | F199: 13.00 | G199: $13,358
A200: =IF(D200="","",COUNTA(($D$8:D200))) -> 175 | C200: 1531 CORR VCT FLOOR | D200: 1978.3 | E200: SQFT | F200: 13.00 | G200: $25,718
A201: =IF(D201="","",COUNTA(($D$8:D201))) -> 176 | C201: 1610 UNIFORM VCT FLOOR | D201: 553.7 | E201: SQFT | F201: 13.00 | G201: $7,198
A202: =IF(D202="","",COUNTA(($D$8:D202))) -> 177 | C202: 1704 ARMORY VCT FLOOR | D202: 461.4 | E202: SQFT | F202: 13.00 | G202: $5,998
A203: =IF(D203="","",COUNTA(($D$8:D203))) -> 178 | C203: 1700 CORR VCT FLOOR | D203: 1649.0 | E203: SQFT | F203: 13.00 | G203: $21,437
... 418 more rows
